bitfinex/quotes_ETHUSD_20260213
["timestamp","ask_amount","ask_price","bid_price","bid_amount"]
[1771000898657,2.25972589,2064.9,2063.7,4.84543075]
[1771000898833,1.049,2064.9,2063.7,5.33406212]
[1771000899155,1.049,2064.9,2063.9,0.48863137]
[1771000899353,2.25973426,2064.9,2063.7,4.84543075]
[1771000899654,1.049,2064.9,2063.8,1.879]
[1771000900027,2.25971482,2064.9,2063.8,1.879]
[1771000900660,1.049,2064.9,2063.9,1.21129899]
[1771000901022,1e-08,2064.9,2063.9,1.21129899]
[1771000901229,4.8417638,2065.4,2064.0,0.48863137]
[1771000901230,1.21045822,2065.4,2064.0,0.48863137]
[1771000901452,1.049,2065.3,2064.0,0.48863137]
[1771000901726,0.002,2064.6,2064.0,0.48863137]
[1771000902071,1.049,2065.3,2064.0,0.48863137]
[1771000902072,0.002,2064.8,2064.0,0.48863137]
[1771000902843,0.002,2064.8,2064.1,1.21118162]
[1771000903230,0.002,2064.8,2064.2,1.007]
[1771000905128,0.002,2064.8,2064.3,1.21106428]
[1771000912256,0.002,2064.8,2063.6,0.18785624]
[1771000912257,0.46541434,2064.8,2063.6,0.001]
[1771000912456,1.04196578,2064.7,2063.8,1.21231848]
[1771000912658,1.04196578,2064.7,2063.8,2.22931848]
[1771000913075,0.002,2064.8,2063.8,2.71794985]
[1771000913491,0.002,2064.8,2063.9,9.61762345]
[1771000913689,0.002,2064.8,2063.9,0.48863137]
[1771000914189,0.002,2064.8,2064.0,1.21124031]
[1771000914559,0.002,2064.8,2064.0,1.21224031]
[1771000915102,0.002,2064.6,2064.0,1.21224031]
[1771000916291,0.002,2064.8,2064.0,0.001]
[1771000921008,1.04209184,2064.7,2064.0,0.001]
[1771000921182,0.47904913,2064.8,2064.0,0.001]
[1771000921378,1.04230727,2064.7,2064.0,0.001]
[1771000921608,0.47904913,2064.8,2064.0,0.001]
[1771000921809,1.04228398,2064.7,2064.0,0.001]
[1771000922014,0.47904913,2064.8,2064.0,0.001]
[1771000922381,0.002,2064.8,2064.0,0.001]
[1771000922585,1.2108883,2064.6,2064.0,0.001]
[1771000922784,1.68793743,2064.6,2064.0,0.001]
[1771000923323,1.04312156,2064.5,2064.0,0.001]
[1771000923521,1.21087272,2064.7,2064.0,0.001]
[1771000923686,3.55613158,2064.7,2064.0,0.001]
[1771000923885,1.5202292,2064.6,2064.0,0.001]
[1771000924088,1.04318007,2064.5,2064.0,0.001]
[1771000924812,2.25417817,2064.5,2064.0,0.001]
[1771000925146,1.30407879,2064.8,2064.0,0.001]
[1771000925319,1.30207879,2064.5,2064.0,0.001]
[1771000925503,2.34628036,2064.5,2064.0,0.001]
[1771000925853,2.34628036,2064.4,2064.0,0.001]
[1771000926131,1.04420157,2064.3,2064.0,0.001]
[1771000926488,1.04420157,2064.2,2064.0,0.001]
[1771000926826,2.51312301,2064.4,2064.0,0.001]
[1771000927135,1.04479596,2064.3,2064.0,0.001]
[1771000927435,1.04479596,2064.2,2064.0,0.001]
[1771000927595,2.51312301,2064.4,2064.0,0.001]
[1771000927596,1.04471202,2064.1,2064.0,0.001]
[1771000927796,1.04471202,2064.1,2063.8,0.001]
[1771000927995,1.04471202,2064.0,2063.6,0.001]
[1771000928240,1.04471202,2063.9,2063.6,0.001]
[1771000928429,1.30207879,2064.1,2063.6,0.001]
[1771000928723,2.82331889,2064.1,2063.6,0.001]
[1771000929027,1.04419097,2064.0,2063.6,0.001]
[1771000929340,1.73718272,2064.4,2063.6,0.001]
[1771000929532,1.68800034,2064.5,2063.6,0.001]
[1771000929735,2.21423185,2064.3,2063.6,0.001]
[1771000929896,0.47704913,2064.2,2063.6,0.001]
[1771000930939,1.68822993,2064.2,2063.6,0.001]
[1771000931296,3.42522362,2064.5,2063.6,0.001]
[1771000931505,1.21099177,2064.5,2063.6,0.001]
[1771000933081,4.84573472,2064.6,2063.6,0.001]
[1771000933287,0.47704913,2064.4,2063.6,0.001]
[1771000933455,0.47704913,2064.3,2063.6,0.001]
[1771000935281,1.21112295,2064.2,2063.6,0.001]
[1771000936081,1.68817208,2064.2,2063.6,0.001]
[1771000936289,0.47704913,2064.1,2063.6,0.001]
[1771000936657,0.47704913,2064.0,2063.6,0.001]
[1771000937089,0.47704913,2063.9,2063.6,0.001]
[1771000937289,1.68840681,2063.8,2063.3,0.001]
[1771000937498,0.47704913,2063.7,2063.3,0.001]
[1771000937870,0.47704913,2063.7,2063.1,0.001]
[1771000938072,0.47704913,2063.6,2062.8,1.21288765]
[1771000938363,1.047,2063.6,2062.8,1.21288765]
[1771000938562,1.047,2063.6,2062.8,0.001]
[1771000938563,0.47704913,2063.5,2062.8,0.001]
[1771000939518,1.2114569,2063.7,2062.8,0.001]
[1771000940264,1.21139796,2063.8,2062.8,0.001]
[1771000940469,2.73537234,2063.9,2062.9,1.017]
[1771000940785,1.21127136,2064.0,2063.5,0.001]
[1771000941295,1.21135768,2063.8,2063.5,0.001]
[1771000941457,1.040691,2063.7,2062.9,1.017]
[1771000941789,1.040691,2063.7,2062.9,2.22888452]
[1771000941951,1.68838967,2063.9,2062.9,2.22888452]
[1771000942157,1.04069428,2063.8,2062.9,2.22888452]
[1771000942356,2.25834054,2063.9,2062.9,2.22888452]
[1771000942659,1.51775922,2063.8,2062.9,2.22888452]
[1771000942872,1.04071009,2063.7,2062.9,2.22888452]
[1771000943314,1.21147509,2063.6,2062.9,1.017]
[1771000943593,1.040695,2063.5,2062.9,1.017]
[1771000943780,1.68852422,2063.6,2062.9,1.017]
[1771000943976,1.04071008,2063.5,2062.9,1.017]
[1771000944185,1.68852422,2063.6,2062.9,2.22888255]
[1771000944357,1.2114472,2063.7,2062.9,2.22888255]
[1771000944582,1.21132581,2063.9,2062.9,2.22888255]
[1771000944777,1.04053279,2063.8,2062.9,2.22888255]
[1771000944992,1.04053279,2063.7,2062.9,2.22888255]
[1771000945208,1.21132581,2063.9,2062.9,2.22888255]
[1771000945526,1.04060326,2063.8,2062.9,2.22888255]
[1771000945691,6.36908396,2064.0,2063.0,0.46600632]
[1771000945692,1.04060326,2063.7,2063.0,0.46600632]
[1771000945884,1.21125224,2064.0,2063.0,0.46600632]
[1771000946080,1.51757688,2063.9,2062.9,2.22888255]
[1771000946294,1.04052775,2063.8,2062.9,2.22888255]
[1771000946496,1.21125224,2064.0,2062.9,2.69488887]
[1771000946711,1.04066207,2063.9,2062.9,2.69488887]
[1771000946913,1.21125224,2064.0,2062.9,2.69488887]
[1771000947124,1.04063797,2063.9,2062.9,2.69488887]
[1771000947327,1.21306428,2064.3,2063.2,1.21170996]
[1771000947531,1.04087521,2064.2,2063.2,1.21170996]
[1771000947697,1.04087521,2064.1,2063.2,1.21170996]
[1771000947897,1.21306428,2064.3,2063.2,1.21170996]
[1771000948111,1.04090231,2064.2,2063.2,1.21170996]
[1771000948316,1.04131911,2064.1,2063.2,1.21170996]
[1771000948627,1.21306428,2064.3,2063.2,1.21170996]
[1771000948805,1.04134606,2064.2,2063.2,1.21170996]
[1771000949011,1.04134606,2064.1,2063.2,1.21170996]
[1771000949250,1.21306428,2064.3,2063.0,2.08480686]
[1771000949251,0.47704913,2063.9,2063.0,2.08480686]
[1771000949453,2.2530912,2063.8,2063.0,2.08480686]
[1771000949747,1.04173352,2063.7,2063.0,2.08480686]
[1771000949893,1.21115165,2064.2,2063.1,0.46600632]
[1771000950093,1.04169298,2064.1,2063.1,0.46600632]
[1771000950342,0.002,2064.3,2063.3,0.46600632]
[1771000950498,0.002,2064.3,2063.5,0.46600632]
[1771000951422,0.002,2064.3,2063.6,1.21147509]
[1771000952740,0.002,2064.3,2063.6,1.70495714]
[1771000953547,0.002,2064.5,2063.7,0.49348205]
[1771000953839,0.002,2064.5,2063.4,1.017]
[1771000954012,0.002,2064.5,2063.2,0.49348205]
[1771000954013,1.51048388,2064.4,2063.2,0.49348205]
[1771000954218,1.04242596,2064.3,2063.2,1.51048205]
[1771000955323,1.04242596,2064.2,2063.2,1.017]
[1771000955512,1.04242596,2064.1,2063.3,1.21165123]
[1771000956113,1.04242596,2064.1,2063.2,2.22866751]
[1771000956310,0.46805792,2064.0,2063.2,2.22870362]
[1771000956510,1.04242596,2063.9,2063.2,2.22870362]
[1771000957841,2.25374914,2063.9,2063.2,2.22870362]
[1771000958040,4.84482779,2064.1,2063.2,2.22870362]
[1771000958351,1.0434781,2064.0,2063.2,2.22870362]
[1771000958537,1.0434781,2063.9,2063.2,2.22870362]
[1771000958716,1.21118162,2064.1,2063.2,2.22870362]
[1771000959038,1.04345665,2064.0,2063.2,2.22870362]
[1771000959209,1.04345665,2063.9,2063.2,2.22870362]
[1771000959415,4.84468219,2064.2,2063.2,2.22870362]
[1771000959416,1.21116391,2064.2,2063.2,2.22870362]
[1771000959723,1.04347704,2064.1,2063.2,2.22870362]
[1771000960041,2.25473325,2064.0,2063.2,2.22870362]
[1771000960238,1.04347704,2063.9,2063.2,2.22870362]
[1771000960431,1.21122592,2064.1,2063.2,2.22870362]
[1771000960735,1.04350974,2064.0,2063.2,2.22870362]
[1771000960930,1.04350974,2063.9,2063.2,2.22870362]
[1771000961140,1.21122592,2064.1,2063.2,2.22870362]
[1771000961338,0.45702807,2063.9,2063.0,0.001]
[1771000961529,0.45702807,2063.6,2063.0,0.001]
[1771000961729,1.04348633,2063.5,2063.0,0.001]
[1771000961912,1.04348633,2063.4,2063.0,0.001]
[1771000962116,1.04348633,2063.3,2063.0,0.001]
[1771000962311,2.94864235,2063.7,2063.0,0.001]
[1771000962525,1.04372158,2063.6,2063.0,0.001]
[1771000962744,1.04372158,2063.5,2063.0,0.001]
[1771000962944,1.21145963,2063.7,2063.0,0.001]
[1771000962945,1.04372158,2063.4,2063.0,0.001]
[1771000963243,1.04372158,2063.3,2063.0,0.001]
[1771000963413,2.94864235,2063.7,2063.0,0.001]
[1771000963617,1.50072171,2063.6,2063.0,0.001]
[1771000963826,1.04369364,2063.5,2063.0,0.001]
[1771000964247,1.21159251,2063.4,2063.0,0.001]
[1771000964445,1.04369364,2063.3,2063.0,0.001]
[1771000964633,1.66852837,2063.6,2063.0,0.001]
[1771000964943,1.04350282,2063.5,2063.0,0.001]
[1771000965134,1.04350282,2063.4,2063.0,0.001]
[1771000965444,1.21142072,2063.7,2063.0,0.001]
[1771000965644,1.04341726,2063.6,2063.0,0.001]
[1771000965856,1.04341726,2063.5,2063.0,0.001]
[1771000966022,1.04341726,2063.4,2063.0,0.001]
[1771000966220,1.04343182,2063.3,2063.0,0.001]
[1771000966422,1.2115338,2063.5,2063.0,0.001]
[1771000966623,1.04338539,2063.4,2063.0,0.001]
[1771000966946,1.04338629,2063.3,2063.0,0.001]
[1771000967145,3.40564978,2063.7,2063.0,0.001]
[1771000967329,1.04326709,2063.6,2063.0,0.001]
[1771000967530,1.04326709,2063.5,2063.0,0.001]
[1771000967725,1.04326709,2063.4,2063.2,0.001]
[1771000968043,1.04332413,2063.3,2063.2,0.001]
[1771000968228,2.94854722,2063.8,2063.2,0.001]
[1771000968424,1.0432894,2063.7,2063.2,0.001]
[1771000968643,1.0432894,2063.6,2063.2,0.001]
[1771000968846,1.0432894,2063.5,2063.2,0.001]
[1771000969144,1.0432894,2063.4,2063.2,0.001]
[1771000969344,2.94854722,2063.8,2063.2,0.001]
[1771000969546,1.04338565,2063.7,2063.2,0.001]
[1771000969753,1.04338565,2063.6,2063.2,0.001]
[1771000969926,1.04338565,2063.5,2063.2,0.001]
[1771000970125,1.2113645,2063.8,2063.2,0.001]
[1771000970324,1.04333426,2063.7,2063.2,0.001]
[1771000970620,1.04333426,2063.6,2063.2,0.001]
[1771000971028,1.04333426,2063.5,2063.2,0.001]
[1771000971227,1.21141739,2063.7,2063.2,0.001]
[1771000971446,1.04334602,2063.6,2063.2,0.001]
[1771000971753,1.04334602,2063.5,2063.2,0.001]
[1771000971930,3.40551622,2063.9,2063.2,0.001]
[1771000972134,1.04333023,2063.8,2063.2,0.001]
[1771000972336,3.40551622,2063.9,2063.2,0.001]
[1771000972337,1.04333023,2063.7,2063.2,0.001]
[1771000972647,1.73718272,2064.1,2063.2,0.001]
[1771000972848,1.04317135,2064.0,2063.2,0.48088953]
[1771000973155,1.21112834,2064.2,2063.2,0.48088953]
[1771000973371,1.04308247,2064.1,2063.2,0.48088953]
[1771000973661,1.04308247,2064.0,2063.2,0.001]
[1771000973846,2.25808271,2064.3,2063.2,0.48088953]
[1771000974044,0.45702807,2064.1,2063.2,0.001]
[1771000974248,1.04308365,2064.0,2063.2,0.001]
[1771000974645,1.21129899,2063.9,2063.2,1.21270996]
[1771000974957,1.21116564,2064.2,2063.2,1.21270996]
[1771000975160,1.04320132,2064.1,2063.2,1.21270996]
[1771000975357,1.04320132,2064.0,2063.2,1.21270996]
[1771000975558,1.04320132,2063.9,2063.2,1.21270996]
[1771000975726,3.99528176,2064.3,2063.2,1.21270996]
[1771000975928,1.04323553,2064.2,2063.2,1.21270996]
[1771000976129,1.04323553,2064.1,2063.2,1.21270996]
[1771000976360,2.95013809,2064.5,2063.3,0.47988953]
[1771000976656,1.21106428,2064.3,2063.4,1.21159251]
[1771000976857,1.04314371,2064.2,2063.4,1.21159251]
[1771000979069,2.25432533,2064.1,2063.4,1.21159251]
[1771000979371,1.04314371,2064.0,2063.4,1.21159251]
[1771000980259,0.45702807,2063.9,2063.2,0.001]
[1771000980468,1.04314371,2063.8,2063.2,0.001]
[1771000980842,1.21141638,2063.7,2063.2,0.001]
[1771000981069,0.45702807,2063.9,2063.2,0.001]
[1771000981070,1.66836043,2063.9,2063.2,0.001]
[1771000981379,1.04324919,2063.8,2063.4,0.001]
[1771000981682,1.04324919,2063.7,2063.4,0.001]
[1771000981971,1.21133236,2063.9,2063.4,0.001]
[1771000982201,1.04352541,2063.8,2063.4,0.001]
[1771000982479,7.63092009,2064.1,2063.4,0.001]
[1771000982480,1.73918272,2064.1,2063.4,0.001]
[1771000982683,1.04371079,2064.0,2063.4,0.47683737]
[1771000982875,0.002,2064.1,2063.5,1.68737117]
[1771000983074,0.002,2064.1,2063.6,1.013]
[1771000983276,0.002,2064.5,2063.6,1.48883737]
[1771000983476,0.002,2064.5,2063.7,0.47583737]
[1771000984592,0.002,2064.5,2063.8,1.34883737]
[1771000984787,0.002,2064.5,2064.0,1.21124031]
[1771000985176,0.002,2064.5,2063.9,1.21125115]
[1771000986592,0.002,2064.5,2063.9,1.68708852]
[1771000986789,0.002,2064.5,2063.9,1.21125115]
[1771000988784,0.002,2064.5,2064.0,1.017]
[1771000988973,0.002,2064.5,2064.1,1.21118162]
[1771000989174,0.002,2064.5,2064.0,1.017]
[1771000989378,0.002,2064.5,2064.0,2.22823475]
[1771000989571,0.002,2064.5,2064.0,1.017]
[1771000989974,0.002,2064.5,2064.0,2.22823337]
[1771000990186,0.45027687,2064.3,2063.2,1.21270152]
[1771000990384,1.0412088,2064.3,2063.4,1.2125872]
[1771000990701,0.002,2064.5,2063.4,1.2125872]
[1771000990869,1.30127216,2064.4,2063.4,1.2125872]
[1771000991064,2.34247082,2064.4,2063.5,1.017]
[1771000991286,0.002,2064.5,2063.5,1.49283737]
[1771000991769,0.002,2064.5,2063.6,0.47583737]
[1771000991977,0.002,2064.5,2063.7,0.873]
[1771000992184,0.002,2064.5,2063.8,0.47583737]
[1771000993101,0.002,2064.5,2063.9,1.21129899]
[1771000993406,0.002,2064.5,2064.0,1.017]
[1771000994401,0.002,2064.3,2064.0,1.017]
[1771000995171,0.002,2064.5,2064.1,1.21118162]
[1771000995869,0.002,2064.5,2063.5,4.84609854]
[1771000995870,0.002,2064.5,2063.5,6.34073773]
[1771000996069,0.002,2064.5,2063.6,0.47583737]
[1771000997305,0.002,2064.5,2063.8,0.47583737]
[1771000997504,0.873,2065.3,2063.8,0.47583737]
[1771000997505,0.002,2065.2,2064.0,0.47583737]
[1771000997707,0.002,2065.2,2064.3,0.47583737]
[1771000997909,0.002,2065.4,2064.5,0.47583737]
[1771000998279,0.002,2065.4,2064.7,0.47583737]
[1771000998500,0.002,2065.4,2064.8,1.49483737]
[1771000999006,0.002,2065.4,2064.8,1.019]
[1771000999302,0.002,2065.4,2064.8,2.22975512]
[1771000999504,0.45227687,2065.4,2064.8,1.019]
[1771000999674,0.002,2065.4,2064.8,2.22975945]
[1771001000106,0.002,2065.4,2064.8,1.019]
[1771001003506,0.002,2065.4,2064.8,2.22976593]
[1771001005089,0.002,2065.4,2064.8,2.22354261]
[1771001006008,0.002,2065.4,2064.8,2.69937998]
[1771001006187,0.002,2065.4,2064.8,2.22354261]
[1771001006508,0.002,2065.4,2064.9,0.873]
[1771001007002,0.002,2065.4,2065.0,0.001]
[1771001007210,0.002,2065.2,2065.0,0.001]
[1771001009421,0.002,2065.4,2065.0,0.001]
[1771001009596,0.002,2065.7,2065.0,0.001]
[1771001009808,0.45227687,2065.7,2065.0,0.001]
[1771001011539,1.66255656,2065.7,2065.0,0.001]
[1771001011819,0.002,2065.7,2065.0,0.001]
[1771001013437,0.002,2065.9,2065.0,0.46492007]
[1771001013722,0.002,2065.9,2065.1,1.21059512]
[1771001013930,0.002,2065.9,2065.2,1.023]
[1771001014926,0.002,2065.9,2065.3,0.873]
[1771001015133,0.002,2065.9,2065.3,1.33692007]
[1771001015331,0.002,2066.1,2065.4,0.46392007]
[1771001015626,0.002,2066.1,2065.5,1.21036068]
[1771001015830,0.002,2066.1,2065.6,1.023]
[1771001016237,0.002,2066.5,2065.7,0.46392007]
[1771001017547,0.002,2066.5,2065.8,1.21018491]
[1771001019410,0.002,2066.5,2065.9,0.45246038]
[1771001019613,0.002,2066.5,2066.1,1.21000919]
[1771001019818,0.002,2066.5,2066.0,2.23402913]
[1771001020047,0.002,2066.5,2066.0,1.024]
[1771001020620,0.002,2066.5,2066.0,2.23406115]
[1771001023742,0.002,2066.5,2066.1,0.872]
[1771001024121,0.002,2066.8,2066.1,0.872]
[1771001024836,23.99620992,2067.8,2066.2,0.45246038]
[1771001024837,0.003,2067.5,2066.2,0.45246038]
[1771001025038,0.46345666,2067.8,2066.6,10.20165238]
[1771001025246,0.46345666,2067.8,2066.5,9.13931652]
[1771001025247,0.46345666,2068.2,2066.9,0.18685624]
[1771001025432,1.99012655,2068.7,2066.9,0.18685624]
[1771001025433,1.29370305,2068.9,2067.3,0.45246038]
[1771001025631,1.20843,2068.8,2067.6,1.20913136]
[1771001025835,0.46345666,2068.7,2067.7,1.028]
[1771001026328,4.83372003,2068.9,2067.7,1.028]
[1771001026329,0.46345666,2068.9,2067.7,1.028]
[1771001027944,1.20843,2068.8,2067.8,1.20901441]
[1771001028450,1.67185383,2068.9,2067.9,1.028]
[1771001028634,0.46345666,2068.8,2067.9,1.028]
[1771001029727,0.46345666,2069.1,2067.8,1.20901441]
[1771001029926,0.46345666,2069.1,2067.9,1.027]
[1771001029927,0.46345666,2068.7,2067.9,1.027]
[1771001030441,0.46345666,2068.7,2067.5,1.20915405]
[1771001031938,1.20854684,2068.6,2067.5,1.20915405]
[1771001032139,0.46345666,2068.7,2067.5,1.20915405]
[1771001032140,1.67198578,2068.7,2067.5,1.20915405]
[1771001032938,0.46345666,2068.6,2067.5,1.20915405]
[1771001033370,0.46345666,2068.6,2067.4,2.23620233]
[1771001033570,10.34784564,2068.7,2067.1,0.872]
[1771001033571,0.46345666,2068.2,2067.1,0.872]
[1771001033746,0.46345666,2068.0,2067.1,2.08142227]
[1771001033945,0.46345666,2067.8,2066.3,3.31711307]
[1771001034141,0.46345666,2067.8,2066.4,1.028]
[1771001034934,0.46345666,2067.6,2066.4,1.028]
[1771001035139,0.46345666,2067.4,2066.4,1.028]
[1771001035971,0.46345666,2067.4,2065.5,6.93055474]
[1771001035972,0.46345666,2067.2,2065.5,6.93055474]
[1771001036176,0.46345666,2067.2,2065.7,1.028]
[1771001036838,9.13931652,2067.1,2065.7,1.028]
[1771001037038,0.46345666,2066.8,2065.7,1.028]
[1771001037285,0.46345666,2066.7,2065.7,1.028]
[1771001037991,9.13931652,2067.1,2065.8,1.21018491]
[1771001037992,2.698939,2067.0,2065.8,1.21018491]
[1771001038166,0.46345666,2066.9,2065.8,1.21018491]
[1771001038767,0.46345666,2066.9,2065.7,5.86873966]
[1771001038768,0.46345666,2066.9,2065.7,2.23820811]
[1771001039162,0.46345666,2066.9,2065.5,4.840974]
[1771001039163,0.46345666,2066.7,2065.5,1.21032938]
[1771001039605,1.20948234,2067.0,2065.5,1.21032938]
[1771001039772,1.027,2066.9,2065.5,1.21032938]
[1771001040086,1.67292279,2067.1,2065.7,9.5917769]
[1771001040288,1.67292279,2067.1,2065.8,1.899]
[1771001040494,0.46345666,2067.0,2065.8,1.899]
[1771001042279,1.20954085,2066.9,2065.9,1.21012633]
[1771001042988,1.6953375,2066.9,2065.9,1.21012633]
[1771001043696,1.6953375,2066.9,2066.0,0.001]
[1771001043898,1.20954085,2066.9,2066.0,0.001]
[1771001044272,1.20942383,2067.1,2066.0,0.001]
[1771001044476,0.48579665,2067.0,2066.0,0.001]
[1771001045578,0.48579665,2066.8,2066.0,0.001]
[1771001045779,0.48579665,2066.6,2066.0,0.001]
[1771001046285,0.48579665,2066.4,2065.8,0.001]
[1771001046492,0.48579665,2066.4,2065.4,1.027]
[1771001046694,0.48579665,2066.4,2065.4,0.001]
[1771001046895,0.48579665,2066.4,2065.4,1.2113778]
[1771001047485,1.027,2066.3,2065.4,1.2113778]
[1771001047892,0.48579665,2066.2,2065.4,1.2113778]
[1771001048285,0.48579665,2066.2,2065.4,0.001]
[1771001048530,1.69580584,2066.1,2065.4,0.001]
[1771001048816,0.48579665,2066.0,2065.4,0.001]
[1771001050413,1.21012633,2065.9,2065.4,0.001]
[1771001050582,1.69592298,2065.9,2065.4,0.001]
[1771001050787,1.027,2065.8,2065.4,0.001]
[1771001050987,1.51279665,2065.8,2065.4,0.001]
[1771001052627,2.72301004,2065.8,2065.4,0.001]
[1771001052996,2.23718541,2065.8,2065.4,0.001]
[1771001053397,2.72298206,2065.8,2065.4,0.001]
[1771001053720,2.72298206,2065.8,2065.1,0.001]
[1771001053721,0.48579665,2065.7,2065.1,0.001]
[1771001054993,1.027,2065.8,2065.1,0.001]
[1771001055421,2.23718968,2065.8,2065.1,0.001]
[1771001055624,1.027,2065.8,2065.1,0.001]
[1771001055828,2.2371905,2065.8,2065.1,0.001]
[1771001056599,0.48579665,2065.7,2064.9,0.001]
[1771001056812,2.2371905,2065.8,2065.6,0.001]
[1771001057098,2.2371905,2065.8,2064.9,0.001]
[1771001057309,2.2371905,2065.8,2065.4,0.001]
[1771001057509,5.32653631,2066.0,2065.4,0.001]
[1771001057510,1.69590944,2066.0,2065.4,0.001]
[1771001057730,2.24103106,2066.1,2065.4,0.001]
[1771001057939,1.031,2066.1,2065.4,0.001]
[1771001058243,1.2099327,2066.3,2065.4,0.001]
[1771001058545,1.903,2066.4,2065.4,0.001]
[1771001058844,0.002,2066.8,2065.6,0.47174524]
[1771001059031,0.002,2066.8,2065.7,1.68198874]
[1771001059343,0.002,2066.8,2065.7,1.2102435]
[1771001059532,0.48779665,2066.8,2065.7,1.2102435]
[1771001060751,0.002,2066.8,2065.7,1.68198874]
[1771001061045,1.2096579,2066.7,2065.6,4.840974]
[1771001061428,1.2116173,2066.8,2065.6,5.31271924]
[1771001061737,1.21161205,2066.8,2065.6,5.31271924]
[1771001061934,0.002,2066.8,2065.6,5.31271924]
[1771001062244,0.002,2066.8,2065.7,0.47174524]
[1771001062543,0.002,2066.8,2065.6,4.840974]
[1771001062544,0.002,2066.8,2065.9,0.47174524]
[1771001062723,0.002,2066.8,2066.0,1.024]
[1771001062933,0.002,2067.0,2066.1,0.47174524]
[1771001063133,0.002,2067.0,2066.2,1.20995063]
[1771001063630,0.48779665,2067.0,2066.2,1.20995063]
[1771001063825,0.48579665,2066.9,2066.0,1.024]
[1771001064026,7.11153665,2066.8,2066.0,1.024]
[1771001064225,1.52499047,2066.7,2065.6,4.84100419]
[1771001064427,0.48579665,2066.7,2065.7,1.023]
[1771001065154,1.20971644,2066.6,2065.8,1.21018491]
[1771001065328,1.20971644,2066.6,2065.7,2.23320019]
[1771001065650,0.48579665,2066.4,2065.5,1.21036068]
[1771001065949,12.164935,2066.5,2065.4,1.21138077]
[1771001065950,1.5261954,2066.3,2065.4,1.21138077]
[1771001066121,0.48579665,2066.4,2065.4,0.001]
[1771001066318,1.029,2066.5,2065.4,1.21141858]
[1771001066319,0.48579665,2066.2,2065.4,1.21141858]
[1771001066521,0.48579665,2066.2,2065.4,0.001]
[1771001066722,1.69551309,2066.6,2065.4,1.21141839]
[1771001067118,1.20983352,2066.4,2065.4,1.21141839]
[1771001067526,1.20980097,2066.5,2065.4,1.21141839]
[1771001067726,1.69555247,2066.6,2065.4,1.21141839]
[1771001067939,1.04035739,2066.5,2065.4,1.21141839]
[1771001068256,1.69555247,2066.6,2065.4,1.21141839]
[1771001068445,1.04042619,2066.5,2065.4,1.21141839]
[1771001068635,1.69555247,2066.6,2065.4,1.21141839]
[1771001068829,1.04042664,2066.5,2065.4,1.21141839]
[1771001069054,1.69555247,2066.6,2065.4,1.21141839]
[1771001069261,1.04042668,2066.5,2065.4,1.21141839]
[1771001069556,1.04042928,2066.4,2065.5,1.024]
[1771001069757,0.48579665,2066.5,2065.5,1.024]
[1771001069922,1.04054169,2066.4,2065.6,0.001]
[1771001070121,0.48579665,2066.5,2065.6,0.001]
[1771001070328,1.04054609,2066.4,2065.6,0.001]
[1771001070526,1.52634274,2066.3,2065.6,0.001]
[1771001070746,0.48579665,2066.3,2065.6,0.001]
[1771001071159,1.20995063,2066.2,2065.6,0.001]
[1771001071646,1.67878136,2066.2,2065.6,0.001]
[1771001072943,0.46883073,2066.1,2065.6,0.001]
[1771001073659,1.21006776,2066.0,2065.6,0.001]
[1771001075046,1.03,2066.1,2065.6,0.001]
[1771001076634,2.24005918,2066.1,2065.6,0.001]
[1771001077446,1.03,2066.1,2065.6,0.001]
[1771001077627,1.032,2066.4,2065.6,0.001]
[1771001078962,1.04148195,2066.3,2065.6,0.001]
[1771001079129,1.032,2066.4,2065.6,0.001]
[1771001079328,1.52214107,2066.4,2065.6,0.001]
[1771001079564,1.04153177,2066.3,2065.6,0.001]
[1771001079743,1.20989207,2066.3,2065.6,0.001]
[1771001081362,1.04159761,2066.2,2065.6,0.001]
[1771001081566,1.70003314,2066.3,2065.6,0.001]
[1771001081762,1.21000919,2066.1,2065.6,0.001]
[1771001082497,1.52414107,2066.0,2065.6,0.001]
[1771001082692,1.53237019,2065.9,2065.8,0.001]
[1771001082901,1.53237019,2065.9,2065.4,0.001]
[1771001083197,1.04222912,2065.8,2065.5,0.001]
[1771001083561,0.49014107,2065.7,2064.9,0.001]
[1771001083860,3.28757935,2065.6,2064.9,0.001]
[1771001084062,1.04222912,2065.5,2064.9,0.001]
[1771001084274,1.035,2065.6,2064.9,0.001]
[1771001084560,1.21020528,2065.8,2064.9,0.47118858]
[1771001084894,1.21004931,2066.1,2065.1,0.47018858]
[1771001085196,1.04212474,2066.0,2065.1,0.47018858]
[1771001085400,1.04212474,2065.9,2065.0,1.019]
[1771001085694,1.21004931,2066.1,2065.0,1.019]
[1771001085991,1.21012633,2065.9,2065.1,1.21059512]
[1771001086294,1.04222313,2065.8,2065.1,1.21059512]
[1771001086497,1.21012633,2065.9,2065.1,1.21059512]
[1771001086886,0.49014107,2065.7,2064.9,1.21170831]
[1771001087068,1.035,2065.8,2064.9,1.21170831]
[1771001087272,1.04243543,2065.7,2064.9,1.21170831]
[1771001087474,1.035,2065.8,2064.9,1.21170831]
[1771001087698,1.04252832,2065.7,2064.9,1.21170831]
[1771001087999,1.2102435,2065.7,2064.9,0.001]
[1771001088197,1.21005283,2066.1,2064.9,0.47118858]
[1771001088369,1.04242215,2066.0,2064.9,0.47118858]
[1771001088702,2.24499661,2066.2,2064.9,0.47118858]
[1771001088896,1.04233003,2066.1,2064.9,0.47118858]
[1771001089065,2.24499661,2066.2,2064.9,0.47118858]
[1771001089269,1.04225638,2066.1,2064.9,0.47118858]
[1771001089595,0.872,2066.5,2065.2,0.47018858]
[1771001089797,0.872,2066.5,2065.4,0.47018858]
[1771001089999,0.872,2066.5,2065.5,1.68054926]
[1771001091265,0.002,2066.6,2065.6,0.47018858]
[1771001092100,0.002,2066.6,2065.7,1.2102435]